fUST/lending_fUST_20250206
["ID","MTS","AMOUNT","RATE_DAILY","PERIOD"]
[351851935,1738820745902,-7158.07,0.00013698,2]
[351851936,1738820745925,-500.0,0.00013698,2]
[351851937,1738820745946,-500.0,0.00013698,2]
[351851938,1738820745966,-500.0,0.00013698,2]
[351851939,1738820745987,-531.08,0.00013698,2]
[351851940,1738820746007,-500.0,0.00013698,2]
[351851941,1738820746028,-500.0,0.00013698,2]
[351851942,1738820746049,-780.18,0.00013698,2]
[351851943,1738820746070,-1153.59,0.00013698,2]
[351851944,1738820746090,-900.43,0.00013698,2]
[351851945,1738820746111,-500.0,0.00013698,2]
[351851946,1738820746132,-500.0,0.00013698,2]
[351851947,1738820746153,-500.0,0.00013698,2]
[351851948,1738820746173,-151.0,0.00013698,2]
[351851949,1738820746195,-865.9,0.00013698,2]
[351851950,1738820746215,-151.606844,0.00013698,2]
[351851951,1738820746236,-500.0,0.00013698,2]
[351851952,1738820746257,-503.10303511,0.00013698,2]
[351851953,1738820746279,-500.0,0.00013698,2]
[351851954,1738820746299,-500.0,0.00013698,2]
[351851955,1738820746321,-500.0,0.00013698,2]
[351851956,1738820746343,-500.0,0.00013698,2]
[351851957,1738820746365,-887.42,0.00013698,2]
[351851958,1738820746387,-2300.78,0.00013698,2]
[351851959,1738820746412,-777.2,0.00013698,2]
[351851960,1738820746434,-500.0,0.00013698,2]
[351851961,1738820746458,-500.0,0.00013698,2]
[351851962,1738820746480,-684.17,0.00013698,2]
[351851963,1738820746500,-151.0,0.00013698,2]
[351851964,1738820746522,-153.170462,0.00013698,2]
[351851965,1738820746542,-500.0,0.00013698,2]
[351851966,1738820746566,-500.0,0.00013698,2]
[351851967,1738820746588,-500.0,0.00013698,2]
[351851968,1738820746609,-1256.76,0.00013698,2]
[351851969,1738820746636,-504.24288528,0.00013698,2]
[351851970,1738820746670,-598.42690136,0.00013698,2]
[351851971,1738820746701,-1394.81,0.00013698,2]
[351851972,1738820746735,-2227.0,0.00013698,2]
[351851973,1738820746769,-500.0,0.00013698,2]
[351851974,1738820746798,-500.0,0.00013698,2]
[351851975,1738820746830,-500.0,0.00013698,2]
[351851976,1738820746859,-2235.05,0.00013698,2]
[351851977,1738820746892,-518.36,0.00013698,2]
[351851978,1738820746926,-720.89,0.00013698,2]
[351851979,1738820746957,-500.0,0.00013698,2]
[351851980,1738820746989,-500.0,0.00013698,2]
[351851981,1738820747021,-151.0,0.00013698,2]
[351851982,1738820747053,-151.0,0.00013698,2]
[351851983,1738820747082,-500.0,0.00013698,2]
[351851984,1738820747109,-151.0,0.00013698,2]
[351851985,1738820747140,-151.0,0.00013698,2]
[351851986,1738820747168,-151.0,0.00013698,2]
[351851987,1738820747196,-151.0,0.00013698,2]
[351851988,1738820747227,-151.0,0.00013698,2]
[351851989,1738820747258,-297.571247,0.00013698,2]
[351851990,1738820747288,-151.0,0.00013698,2]
[351851991,1738820747318,-945.13924993,0.00013698,2]
[351851992,1738820832115,-500.0,0.0001315,2]
[351851993,1738820832138,-252.67112327,0.00013597,2]
[351851994,1738820832161,-175.1398506,0.00013696,2]
[351851995,1738820832183,-300.0,0.00013697,2]
[351851996,1738820832206,-4277.99075007,0.00013698,2]
[351851997,1738820832228,-151.0,0.00013698,2]
[351851998,1738820832250,-500.0,0.00013698,2]
[351851999,1738820832273,-151.0,0.00013698,2]
[351852000,1738820832295,-151.0,0.00013698,2]
[351852001,1738820832317,-560.74,0.00013698,2]
[351852002,1738820832337,-500.0,0.00013698,2]
[351852003,1738820832358,-151.0,0.00013698,2]
[351852004,1738820832379,-151.0,0.00013698,2]
[351852005,1738820832399,-500.0,0.00013698,2]
[351852006,1738820832425,-500.0,0.00013698,2]
[351852007,1738820832447,-523.91,0.00013698,2]
[351852008,1738820832470,-500.0,0.00013698,2]
[351852009,1738820832490,-500.0,0.00013698,2]
[351852010,1738820832512,-500.0,0.00013698,2]
[351852011,1738820832533,-494.47057055,0.00013698,2]
[351852012,1738820832554,-6394.47,0.00013698,2]
[351852013,1738820832575,-9631.76,0.00013698,2]
[351852014,1738820832598,-29127.88,0.00013698,2]
[351852015,1738820832619,-500.0,0.00013698,2]
[351852016,1738820832642,-500.0,0.00013698,2]
[351852017,1738820832664,-500.0,0.00013698,2]
[351852018,1738820832685,-500.0,0.00013698,2]
[351852019,1738820832705,-151.0,0.00013698,2]
[351852020,1738820832727,-151.0,0.00013698,2]
[351852021,1738820832748,-151.0,0.00013698,2]
[351852022,1738820832771,-151.0,0.00013698,2]
[351852023,1738820832791,-1228.42,0.00013698,2]
[351852024,1738820832812,-151.0,0.00013698,2]
[351852025,1738820832834,-694.98,0.00013698,2]
[351852026,1738820832856,-500.0,0.00013698,2]
[351852027,1738820832878,-500.0,0.00013698,2]
[351852028,1738820832899,-349.85126099,0.00013698,2]
[351852029,1738820832923,-4804.83,0.00013698,2]
[351852030,1738820832946,-4804.83,0.00013698,2]
[351852031,1738820832968,-4804.83,0.00013698,2]
[351852032,1738820832992,-4804.83,0.00013698,2]
[351852033,1738820833015,-4804.83,0.00013698,2]
[351852034,1738820833037,-4804.83,0.00013698,2]
[351852035,1738820833059,-4804.83,0.00013698,2]
[351852036,1738820833081,-4804.83,0.00013698,2]
[351852037,1738820833103,-1143.13,0.00013698,2]
[351852038,1738820833127,-4804.83,0.00013698,2]
[351852039,1738820833148,-500.0,0.00013698,2]
[351852040,1738820833172,-4804.83,0.00013698,2]
[351852041,1738820833195,-666.07,0.00013698,2]
[351852042,1738820833218,-4804.83,0.00013698,2]
[351852043,1738820833240,-4804.83,0.00013698,2]
[351852044,1738820833263,-4804.83,0.00013698,2]
[351852045,1738820833285,-4804.83,0.00013698,2]
[351852046,1738820833306,-500.0,0.00013698,2]
[351852047,1738820833329,-2224.47,0.00013698,2]
[351852048,1738820833352,-4804.83,0.00013698,2]
[351852049,1738820833375,-4804.83,0.00013698,2]
[351852050,1738820833398,-4804.83,0.00013698,2]
[351852051,1738820833425,-4804.83,0.00013698,2]
[351852052,1738820833447,-4804.83,0.00013698,2]
[351852053,1738820833468,-4804.83,0.00013698,2]
[351852054,1738820833490,-4804.83,0.00013698,2]
[351852055,1738820833514,-4804.83,0.00013698,2]
[351852056,1738820833535,-4804.83,0.00013698,2]
[351852057,1738820833557,-4805.04,0.00013698,2]
[351852058,1738820833577,-500.0,0.00013698,2]
[351852059,1738820833603,-641.1,0.00013698,2]
[351852060,1738820833631,-632.86,0.00013698,2]
[351852061,1738820833829,-500.0,0.00013698,2]
[351852062,1738820833851,-154.288381,0.00013698,2]
[351852063,1738820833876,-1004.44,0.00013698,2]
[351852064,1738820833898,-2057.59,0.00013698,2]
[351852065,1738820833919,-500.0,0.00013698,2]
[351852066,1738820833941,-151.0,0.00013698,2]
[351852067,1738820833963,-151.0,0.00013698,2]
[351852068,1738820833985,-2439.35,0.00013698,2]
[351852069,1738820834006,-151.0,0.00013698,2]
[351852070,1738820834028,-500.0,0.00013698,2]
[351852071,1738820834049,-500.0,0.00013698,2]
[351852072,1738820834070,-151.0,0.00013698,2]
[351852073,1738820834091,-151.0,0.00013698,2]
[351852074,1738820834112,-151.0,0.00013698,2]
[351852075,1738820834134,-501.67,0.00013698,2]
[351852076,1738820834156,-151.0,0.00013698,2]
[351852077,1738820834178,-151.0,0.00013698,2]
[351852078,1738820834200,-151.0,0.00013698,2]
[351852079,1738820834222,-151.0,0.00013698,2]
[351852080,1738820834244,-188.988048,0.00013698,2]
[351852081,1738820834267,-500.0,0.00013698,2]
[351852082,1738820834289,-505.19320825,0.00013698,2]
[351852083,1738820834312,-500.0,0.00013698,2]
[351852084,1738820834333,-500.0,0.00013698,2]
[351852085,1738820834355,-500.0,0.00013698,2]
[351852086,1738820834376,-500.0,0.00013698,2]
[351852087,1738820834396,-506.99798037,0.00013698,2]
[351852088,1738820834419,-500.0,0.00013698,2]
[351852089,1738820834441,-500.0,0.00013698,2]
[351852090,1738820834463,-6748.78,0.00013698,2]
[351852091,1738820834484,-500.0,0.00013698,2]
[351852092,1738820834508,-594.63,0.00013698,2]
[351852093,1738820834529,-12985.96,0.00013698,2]
[351852094,1738820834551,-692.0,0.00013698,2]
[351852095,1738820834573,-1199.92,0.00013698,2]
[351852096,1738820834597,-266.67256438,0.00013698,2]
[351852097,1738820834618,-500.0,0.00013698,2]
[351852098,1738820834640,-1248.79,0.00013698,2]
[351852099,1738820834662,-617.88,0.00013698,2]
[351852100,1738820834684,-938.1,0.00013698,2]
[351852101,1738820834705,-435.88581165,0.00013698,2]
[351852102,1738820834725,-500.0,0.00013698,2]
[351852103,1738820834747,-2728.97,0.00013698,2]
[351852104,1738820834770,-3640.18,0.00013698,2]
[351852105,1738820834793,-4149.87,0.00013698,2]
[351852106,1738820834815,-500.0,0.00013698,2]
[351852107,1738820834837,-500.0,0.00013698,2]
[351852108,1738820834859,-500.0,0.00013698,2]
[351852109,1738820834881,-514.59,0.00013698,2]
[351852110,1738820834903,-500.0,0.00013698,2]
[351852111,1738820834926,-2764.26,0.00013698,2]
[351852112,1738820834949,-500.0,0.00013698,2]
[351852113,1738820834971,-671.33,0.00013698,2]
[351852114,1738820834994,-2467.31,0.00013698,2]
[351852115,1738820835015,-500.0,0.00013698,2]
[351852116,1738820835036,-656.42,0.00013698,2]
[351852117,1738820835058,-804.17,0.00013698,2]
[351852118,1738820835079,-500.0,0.00013698,2]
[351852119,1738820835101,-500.0,0.00013698,2]
[351852120,1738820835123,-345.92845427,0.00013698,2]
[351852121,1738820835144,-598.18,0.00013698,2]
[351852122,1738820835165,-500.0,0.00013698,2]
[351852123,1738820835186,-943.9,0.00013698,2]
[351852124,1738820835207,-500.0,0.00013698,2]
[351852125,1738820835228,-500.0,0.00013698,2]
[351852126,1738820835248,-500.0,0.00013698,2]
[351852127,1738820835270,-500.0,0.00013698,2]
[351852128,1738820835293,-14216.15,0.00013698,2]
[351852129,1738820835316,-14216.15,0.00013698,2]
[351852130,1738820835339,-14216.15,0.00013698,2]
[351852131,1738820835361,-500.0,0.00013698,2]
[351852132,1738820835383,-14216.15,0.00013698,2]
[351852133,1738820835405,-14216.15,0.00013698,2]
[351852134,1738820835430,-14216.15,0.00013698,2]
[351852135,1738820835452,-14216.15,0.00013698,2]
[351852136,1738820835474,-500.0,0.00013698,2]
[351852137,1738820835497,-14216.15,0.00013698,2]
[351852138,1738820835520,-14216.15,0.00013698,2]
[351852139,1738820835542,-3319.5647276,0.00013698,2]
[351852140,1738820836185,-10896.5852724,0.00013698,2]
[351852141,1738820836205,-151.0,0.00013698,2]
[351852142,1738820836227,-14216.15,0.00013698,2]
[351852143,1738820836248,-151.0,0.00013698,2]
[351852144,1738820836271,-14216.15,0.00013698,2]
[351852145,1738820836292,-154.343146,0.00013698,2]
[351852146,1738820836314,-14216.15,0.00013698,2]
[351852147,1738820836339,-14216.15,0.00013698,2]
[351852148,1738820836361,-14216.15,0.00013698,2]
[351852149,1738820836383,-14216.15,0.00013698,2]
[351852150,1738820836406,-14216.15,0.00013698,2]
[351852151,1738820836432,-13528.3232926,0.00013698,2]
[351852152,1738820842205,-687.8267074,0.00013698,2]
[351852153,1738820842226,-504.1692633,0.00013698,2]
[351852154,1738820842248,-14216.15,0.00013698,2]
[351852155,1738820842271,-5669.5548513,0.00013698,2]
[351852187,1738821032304,-2039.161977,0.00012708,2]
[351852189,1738821032314,-499.999999,0.000136,2]
[351852191,1738821032324,-27.988024,0.0001369,2]
[351852202,1738821032419,-2770.54634135,0.0001369,2]
[351852249,1738821038306,-4640.16316743,0.0001369,2]
[351852250,1738821038315,-175.1398507,0.00013696,2]
[351852251,1738821038324,-300.0,0.00013697,2]
[351852252,1738821038334,-556.18833452,0.00013697,2]
[351852253,1738821038343,-606.7,0.00013698,2]
[351852254,1738821038353,-2192.14,0.00013698,2]
[351852255,1738821038362,-504.16742725,0.00013698,2]
[351852256,1738821038372,-300.0,0.00013698,2]
[351852257,1738821038382,-500.0,0.00013698,2]
[351852258,1738821038391,-500.0,0.00013698,2]
[351852259,1738821038401,-500.0,0.00013698,2]
[351852260,1738821038410,-151.0,0.00013698,2]
[351852261,1738821038419,-151.0,0.00013698,2]
[351852262,1738821038428,-151.0,0.00013698,2]
[351852263,1738821038438,-151.0,0.00013698,2]
[351852264,1738821038447,-151.0,0.00013698,2]
[351852265,1738821038456,-151.0,0.00013698,2]
[351852266,1738821038465,-151.0,0.00013698,2]
[351852267,1738821038474,-156.753387,0.00013698,2]
[351852268,1738821038484,-500.0,0.00013698,2]
[351852269,1738821038497,-2251.01,0.00013698,2]
[351852270,1738821038506,-151.0,0.00013698,2]
[351852271,1738821038515,-151.0,0.00013698,2]
[351852272,1738821038525,-151.0,0.00013698,2]
[351852273,1738821038534,-151.0,0.00013698,2]
[351852274,1738821038544,-151.0,0.00013698,2]
[351852275,1738821038553,-151.0,0.00013698,2]
[351852276,1738821038562,-151.0,0.00013698,2]
[351852277,1738821038573,-151.0,0.00013698,2]
[351852278,1738821038582,-151.0,0.00013698,2]
[351852279,1738821038591,-162.393531,0.00013698,2]
[351852280,1738821038600,-151.0,0.00013698,2]
[351852281,1738821038610,-151.0,0.00013698,2]
[351852282,1738821038619,-151.0,0.00013698,2]
[351852283,1738821038628,-151.0,0.00013698,2]
[351852284,1738821038637,-151.0,0.00013698,2]
[351852285,1738821038646,-151.0,0.00013698,2]
[351852286,1738821038656,-827.46,0.00013698,2]
[351852287,1738821038665,-151.0,0.00013698,2]
[351852288,1738821038675,-156.747483,0.00013698,2]
[351852289,1738821038684,-151.0,0.00013698,2]
[351852290,1738821038694,-151.0,0.00013698,2]
[351852291,1738821038704,-151.0,0.00013698,2]
[351852292,1738821038713,-151.0,0.00013698,2]
[351852293,1738821038722,-151.0,0.00013698,2]
[351852294,1738821038732,-151.0,0.00013698,2]
[351852295,1738821038742,-500.0,0.00013698,2]
[351852296,1738821038752,-151.0,0.00013698,2]
[351852297,1738821038762,-1499.74,0.00013698,2]
[351852298,1738821038771,-151.0,0.00013698,2]
[351852299,1738821038781,-151.0,0.00013698,2]
[351852300,1738821038791,-187.620532,0.00013698,2]
[351852301,1738821038801,-271.244979,0.00013698,2]
[351852302,1738821038811,-271.244979,0.00013698,2]
[351852303,1738821038821,-271.244979,0.00013698,2]
[351852304,1738821038831,-271.244979,0.00013698,2]
[351852305,1738821038841,-271.244979,0.00013698,2]
[351852306,1738821038850,-271.244979,0.00013698,2]
[351852307,1738821038860,-271.244979,0.00013698,2]
[351852308,1738821038869,-271.244979,0.00013698,2]
[351852309,1738821038880,-271.244979,0.00013698,2]
[351852310,1738821038892,-271.244979,0.00013698,2]
[351852311,1738821038901,-271.244979,0.00013698,2]
[351852312,1738821038912,-271.244979,0.00013698,2]
[351852313,1738821038924,-299.083814,0.00013698,2]
[351852314,1738821038935,-299.083814,0.00013698,2]
[351852315,1738821038946,-299.083814,0.00013698,2]
[351852316,1738821038955,-299.083814,0.00013698,2]
[351852317,1738821038965,-299.083814,0.00013698,2]
[351852318,1738821038974,-299.083814,0.00013698,2]
[351852319,1738821038983,-151.0,0.00013698,2]
[351852320,1738821038993,-151.0,0.00013698,2]
[351852321,1738821039002,-151.0,0.00013698,2]
[351852322,1738821039012,-299.083814,0.00013698,2]
[351852323,1738821039021,-299.083814,0.00013698,2]
[351852324,1738821039030,-299.083814,0.00013698,2]
[351852325,1738821039039,-151.0,0.00013698,2]
[351852326,1738821039048,-299.083814,0.00013698,2]
[351852327,1738821039057,-151.0,0.00013698,2]
[351852328,1738821039067,-299.083814,0.00013698,2]
[351852329,1738821039076,-151.0,0.00013698,2]
[351852330,1738821039085,-299.083814,0.00013698,2]
[351852331,1738821039095,-151.0,0.00013698,2]
[351852332,1738821039104,-151.0,0.00013698,2]
[351852333,1738821039113,-151.0,0.00013698,2]
[351852334,1738821039122,-500.0,0.00013698,2]
[351852335,1738821039131,-500.0,0.00013698,2]
[351852336,1738821039141,-151.0,0.00013698,2]
[351852337,1738821039150,-153.876921,0.00013698,2]
[351852338,1738821039160,-500.0,0.00013698,2]
[351852339,1738821039169,-727.91,0.00013698,2]
[351852340,1738821039178,-500.0,0.00013698,2]
[351852341,1738821039187,-500.0,0.00013698,2]
[351852342,1738821039197,-151.0,0.00013698,2]
[351852343,1738821039207,-151.0,0.00013698,2]
[351852344,1738821039215,-500.0,0.00013698,2]
[351852345,1738821039225,-582.22133641,0.00013698,2]
[351852346,1738821039234,-500.0,0.00013698,2]
[351852347,1738821039243,-500.0,0.00013698,2]
[351852348,1738821039252,-500.0,0.00013698,2]
[351852349,1738821039262,-500.0,0.00013698,2]
[351852350,1738821039271,-500.0,0.00013698,2]
[351852351,1738821039280,-500.0,0.00013698,2]
[351852352,1738821039289,-408.90958221,0.00013698,2]
[351852353,1738821039298,-587.29,0.00013698,2]
[351852354,1738821039308,-525.14593161,0.00013698,2]
[351852355,1738821039318,-578.72,0.00013698,2]
[351852356,1738821039327,-500.0,0.00013698,2]
[351852357,1738821039337,-500.0,0.00013698,2]
[351852358,1738821039346,-500.0,0.00013698,2]
[351852359,1738821039355,-500.0,0.00013698,2]
[351852360,1738821039365,-1103.41,0.00013698,2]
[351852361,1738821039374,-503.55234073,0.00013698,2]
[351852362,1738821039383,-500.0,0.00013698,2]
[351852363,1738821039392,-500.0,0.00013698,2]
[351852364,1738821039402,-500.0,0.00013698,2]
[351852365,1738821039412,-503.59341216,0.00013698,2]
[351852366,1738821039421,-6859.82,0.00013698,2]
[351852367,1738821039430,-500.0,0.00013698,2]
[351852368,1738821039439,-500.0,0.00013698,2]
[351852369,1738821039449,-501.21147551,0.00013698,2]
[351852370,1738821039458,-500.0,0.00013698,2]
[351852371,1738821039467,-1021.85,0.00013698,2]
[351852372,1738821039476,-500.0,0.00013698,2]
[351852373,1738821039485,-500.0,0.00013698,2]
[351852374,1738821039498,-500.0,0.00013698,2]
[351852375,1738821039508,-654.1,0.00013698,2]
[351852376,1738821039518,-1105.53,0.00013698,2]
[351852377,1738821039527,-500.0,0.00013698,2]
[351852378,1738821039538,-1050.21,0.00013698,2]
[351852379,1738821039547,-597.37550975,0.00013698,2]
[351852380,1738821039557,-500.0,0.00013698,2]
[351852381,1738821039567,-17756.04,0.00013698,2]
[351852382,1738821039577,-500.0,0.00013698,2]
[351852383,1738821039587,-500.0,0.00013698,2]
[351852384,1738821039596,-500.0,0.00013698,2]
[351852385,1738821039605,-607.9,0.00013698,2]
[351852386,1738821039614,-687.66,0.00013698,2]
[351852387,1738821039624,-500.0,0.00013698,2]
[351852388,1738821039633,-151.0,0.00013698,2]
[351852389,1738821039642,-151.246297,0.00013698,2]
[351852390,1738821039651,-500.0,0.00013698,2]
[351852391,1738821039661,-500.0,0.00013698,2]
[351852392,1738821039670,-151.0,0.00013698,2]
[351852393,1738821039679,-151.0,0.00013698,2]
[351852394,1738821039689,-560.77407721,0.00013698,2]
[351852395,1738821039698,-501.94478288,0.00013698,2]
[351852397,1738821039708,-631.59,0.00013698,2]
[351852398,1738821039717,-645.66,0.00013698,2]
[351852399,1738821039729,-1204.4,0.00013698,2]
[351852400,1738821039739,-151.0,0.00013698,2]
[351852401,1738821039748,-500.0,0.00013698,2]
[351852402,1738821039757,-216.122874,0.00013698,2]
[351852403,1738821039766,-3456.85,0.00013698,2]
[351852404,1738821039776,-151.0,0.00013698,2]
[351852405,1738821039785,-151.0,0.00013698,2]
[351852406,1738821039794,-501.19181129,0.00013698,2]
[351852407,1738821039803,-399.28016606,0.00013698,2]
[351852408,1738821039813,-315.03493391,0.00013698,2]
[351852409,1738821039823,-151.0,0.00013698,2]
[351852410,1738821039832,-151.0,0.00013698,2]
[351852412,1738821039842,-953.36,0.00013698,2]
[351852413,1738821039852,-500.0,0.00013698,2]
[351852414,1738821039861,-500.0,0.00013698,2]
[351852415,1738821039870,-500.0,0.00013698,2]
[351852416,1738821039879,-457.02130959,0.00013698,2]
[351852417,1738821039887,-514.35,0.00013698,2]
[351852419,1738821039897,-504.23080733,0.00013698,2]
[351852420,1738821039908,-500.0,0.00013698,2]
[351852421,1738821039918,-658.44720254,0.00013698,2]
[351852422,1738821039937,-2499.71279746,0.00013698,2]
[351852423,1738821039948,-500.0,0.00013698,2]
[351852425,1738821039959,-502.4807901,0.00013698,2]
[351852426,1738821039969,-500.0,0.00013698,2]
[351852427,1738821039979,-500.0,0.00013698,2]
[351852428,1738821039988,-503.86326658,0.00013698,2]
[351852429,1738821039998,-534.3288451,0.00013698,2]
[351852430,1738821040008,-500.0,0.00013698,2]
[351852431,1738821040018,-650.01,0.00013698,2]
[351852433,1738821040027,-3198.10430076,0.00013698,2]
[351852477,1738821043988,-2929.92569924,0.00013698,2]
[351852478,1738821043998,-1208.41,0.00013698,2]
[351852479,1738821044007,-503.62468703,0.00013698,2]
[351852480,1738821044017,-151.0,0.00013698,2]
[351852481,1738821044027,-151.0,0.00013698,2]
[351852482,1738821044036,-500.0,0.00013698,2]
[351852483,1738821044046,-813.08,0.00013698,2]
[351852484,1738821044057,-564.41,0.00013698,2]
[351852485,1738821044067,-502.65415292,0.00013698,2]
[351852486,1738821044077,-500.0,0.00013698,2]
[351852487,1738821044086,-151.0,0.00013698,2]
[351852488,1738821044096,-151.0,0.00013698,2]
[351852489,1738821044106,-500.0,0.00013698,2]
[351852490,1738821044116,-159.347212,0.00013698,2]
[351852491,1738821044125,-664.29,0.00013698,2]
[351852492,1738821044135,-159.347212,0.00013698,2]
[351852493,1738821044145,-1590.11,0.00013698,2]
[351852494,1738821044288,-735.42,0.00013698,2]
[351852495,1738821044299,-500.0,0.00013698,2]
[351852496,1738821044308,-159.347212,0.00013698,2]
[351852497,1738821044318,-500.0,0.00013698,2]
[351852498,1738821044327,-159.347212,0.00013698,2]
[351852499,1738821044337,-500.0,0.00013698,2]
[351852500,1738821044347,-500.0,0.00013698,2]
[351852501,1738821044357,-500.0,0.00013698,2]
[351852502,1738821044366,-720.11,0.00013698,2]
[351852503,1738821044376,-500.0,0.00013698,2]
[351852504,1738821044385,-151.0,0.00013698,2]
[351852505,1738821044395,-500.0,0.00013698,2]
[351852506,1738821044405,-151.0,0.00013698,2]
[351852507,1738821044414,-500.0,0.00013698,2]
[351852508,1738821044424,-1063.19,0.00013698,2]
[351852509,1738821044434,-151.0,0.00013698,2]
[351852510,1738821044444,-750.68,0.00013698,2]
[351852511,1738821044454,-151.0,0.00013698,2]
[351852512,1738821044463,-500.0,0.00013698,2]
[351852513,1738821044473,-500.0,0.00013698,2]
[351852514,1738821044482,-500.0,0.00013698,2]
[351852515,1738821044496,-500.87153261,0.00013698,2]
[351852516,1738821044505,-1307.18,0.00013698,2]
[351852517,1738821044515,-516.78,0.00013698,2]
[351852518,1738821044525,-599.88,0.00013698,2]
[351852519,1738821044535,-1176.58,0.00013698,2]
[351852520,1738821044545,-500.0,0.00013698,2]
[351852521,1738821044554,-1971.86,0.00013698,2]
[351852522,1738821044563,-391.6275532,0.00013698,2]
[351852523,1738821044888,-119.2024468,0.00013698,2]
[351852524,1738821044897,-500.0,0.00013698,2]
[351852525,1738821044908,-430.79755321,0.00013698,2]
[351852526,1738821044921,-69.20244679,0.00013698,2]
[351852527,1738821044931,-500.0,0.00013698,2]
[351852528,1738821044940,-1000.0,0.00013698,2]
[351852529,1738821044951,-500.0,0.00013698,2]
[351852530,1738821044960,-500.0,0.00013698,2]
[351852531,1738821044971,-500.0,0.00013698,2]
[351852532,1738821044981,-500.0,0.00013698,2]
[351852533,1738821044990,-500.0,0.00013698,2]
[351852534,1738821045000,-508.13105513,0.00013698,2]
[351852535,1738821045009,-500.0,0.00013698,2]
[351852536,1738821045019,-509.04712451,0.00013698,2]
[351852537,1738821045029,-500.0,0.00013698,2]
[351852538,1738821045038,-500.0,0.00013698,2]
[351852539,1738821045048,-77374.67,0.00013698,2]
[351852540,1738821045057,-500.0,0.00013698,2]
[351852541,1738821045066,-500.0,0.00013698,2]
[351852542,1738821045075,-500.0,0.00013698,2]
[351852543,1738821045085,-500.0,0.00013698,2]
[351852544,1738821045094,-151.0,0.00013698,2]
[351852545,1738821045103,-638.32,0.00013698,2]
[351852546,1738821045112,-151.0,0.00013698,2]
[351852547,1738821045121,-4373.09,0.00013698,2]
[351852548,1738821045130,-11692.24,0.00013698,2]
[351852549,1738821045139,-500.0,0.00013698,2]
[351852550,1738821045148,-500.0,0.00013698,2]
[351852551,1738821045157,-151.0,0.00013698,2]
[351852552,1738821045167,-151.0,0.00013698,2]
[351852553,1738821045176,-3976.96,0.00013698,2]
[351852554,1738821045185,-500.0,0.00013698,2]
[351852555,1738821045194,-27914.21,0.00013698,2]
[351852556,1738821045203,-500.0,0.00013698,2]
[351852557,1738821045213,-968.11,0.00013698,2]
[351852558,1738821045222,-500.43611061,0.00013698,2]
[351852559,1738821045231,-614.39,0.00013698,2]
[351852560,1738821045240,-500.0,0.00013698,2]
[351852561,1738821045249,-500.0,0.00013698,2]
[351852562,1738821045258,-500.0,0.00013698,2]
[351852563,1738821045267,-500.0,0.00013698,2]
[351852564,1738821045276,-531.31,0.00013698,2]
[351852565,1738821045286,-501.74125876,0.00013698,2]
[351852566,1738821045295,-609.94,0.00013698,2]
[351852567,1738821045304,-500.0,0.00013698,2]
[351852568,1738821045313,-2337.71,0.00013698,2]
[351852569,1738821045323,-500.0,0.00013698,2]
[351852570,1738821045332,-500.0,0.00013698,2]
[351852571,1738821045340,-500.0,0.00013698,2]